bitfinex/quotes_BTCUSD_20241222
["timestamp","ask_amount","ask_price","bid_price","bid_amount"]
[1734899777280,0.06122609,95209.0,95208.0,0.1013084]
[1734899777657,0.06122609,95209.0,95208.0,0.1053084]
[1734899778630,0.06122609,95209.0,95208.0,0.19969218]
[1734899779618,0.06122609,95209.0,95208.0,0.19569218]
[1734899780032,0.06122609,95209.0,95208.0,0.45763179]
[1734899782311,0.06122609,95209.0,95208.0,0.64616477]
[1734899782707,0.06122609,95209.0,95208.0,0.63816477]
[1734899782908,0.06122609,95209.0,95208.0,0.64616477]
[1734899783757,0.06122609,95209.0,95208.0,0.63816477]
[1734899783959,0.06122609,95209.0,95208.0,0.44963179]
[1734899784162,0.06122609,95209.0,95208.0,0.45780299]
[1734899784497,4.40359703,95207.0,95205.0,0.0001712]
[1734899784656,4.40359703,95207.0,95206.0,0.21007]
[1734899785247,4.40359703,95207.0,95206.0,0.14160871]
[1734899785453,4.46482312,95207.0,95206.0,0.14160871]
[1734899785656,4.46968237,95207.0,95206.0,0.14160871]
[1734899786254,4.47068237,95207.0,95206.0,0.14160871]
[1734899786668,4.47068237,95207.0,95205.0,0.0311712]
[1734899786882,4.47068237,95207.0,95206.0,0.3113784]
[1734899787088,4.46968237,95207.0,95206.0,0.3113784]
[1734899787288,4.47068237,95207.0,95206.0,0.3193784]
[1734899787655,4.46968237,95207.0,95206.0,0.3113784]
[1734899788081,4.47068237,95207.0,95206.0,0.1013084]
[1734899789216,4.46968237,95207.0,95206.0,0.1013084]
[1734899789669,4.47068237,95207.0,95206.0,0.1093084]
[1734899791849,4.40945628,95207.0,95206.0,0.1323084]
[1734899793619,4.40945628,95207.0,95206.0,0.2145084]
[1734899794146,4.40945628,95207.0,95206.0,0.1323084]
[1734899794350,4.47068237,95207.0,95206.0,0.1323084]
[1734899795930,4.40945628,95207.0,95206.0,0.1323084]
[1734899796130,4.47068237,95207.0,95206.0,0.1324796]
[1734899796360,4.40945628,95207.0,95206.0,0.1324796]
[1734899796560,4.40954188,95207.0,95206.0,0.1324796]
[1734899798420,4.40954188,95207.0,95206.0,0.6203585]
[1734899798921,3.88348651,95207.0,95206.0,0.7006585]
[1734899799251,3.88348651,95207.0,95206.0,0.6203585]
[1734899799711,3.88348651,95207.0,95206.0,0.36844657]
[1734899801155,3.88348651,95207.0,95206.0,0.1324796]
[1734899802085,3.88348651,95207.0,95206.0,0.48091618]
[1734899811909,3.88348651,95207.0,95206.0,0.71021618]
[1734899812142,3.88348651,95207.0,95206.0,0.75931618]
[1734899813387,3.88248651,95207.0,95206.0,0.75131618]
[1734899813743,3.88248651,95207.0,95206.0,0.76031618]
[1734899813946,3.88248651,95207.0,95206.0,0.75131618]
[1734899814153,3.88248651,95207.0,95206.0,1.23932101]
[1734899814374,3.88248651,95207.0,95206.0,1.24832101]
[1734899814577,3.88248651,95207.0,95206.0,1.23932101]
[1734899815004,3.88248651,95207.0,95206.0,1.24832101]
[1734899815264,3.88248651,95207.0,95206.0,0.79909009]
[1734899815488,3.85662026,95207.0,95206.0,1.46784511]
[1734899815710,3.77748744,95207.0,95206.0,1.43509009]
[1734899816201,3.77748744,95207.0,95206.0,1.46784175]
[1734899816372,3.75648044,95207.0,95206.0,1.46784175]
[1734899816576,3.67245244,95207.0,95206.0,1.43509009]
[1734899816780,3.67245244,95207.0,95206.0,1.42609009]
[1734899817195,3.66755726,95207.0,95206.0,1.43509009]
[1734899817408,1.90864413,95207.0,95206.0,0.88149009]
[1734899817605,0.00010773,95227.0,95206.0,0.88149009]
[1734899817606,0.077,95264.0,95251.0,0.1]
[1734899817772,0.077,95264.0,95254.0,0.2513084]
[1734899817972,0.00014799,95255.0,95254.0,0.4612724]
[1734899818260,0.00014799,95255.0,95254.0,0.50004631]
[1734899819379,0.00014799,95255.0,95254.0,0.5297631]
[1734899819694,0.0001525,95282.0,95260.0,0.03877391]
[1734899819899,0.0001525,95282.0,95254.0,0.2743084]
[1734899819900,0.0001525,95282.0,95275.0,0.3342264]
[1734899820283,0.0001525,95282.0,95275.0,0.1243084]
[1734899820483,0.0001525,95282.0,95275.0,0.3342264]
[1734899820913,0.00025229,95279.0,95276.0,0.232916]
[1734899821157,0.00037138,95279.0,95278.0,0.209912]
[1734899821356,0.00037138,95279.0,95278.0,0.3342204]
[1734899822116,0.18729747,95279.0,95278.0,0.1013084]
[1734899822320,0.18729747,95279.0,95270.0,0.09395108]
[1734899822321,0.13822609,95271.0,95270.0,0.09395108]
[1734899822496,0.13822609,95271.0,95270.0,0.19525948]
[1734899822729,0.077,95271.0,95270.0,0.19525948]
[1734899822929,0.077,95271.0,95270.0,0.1013084]
[1734899822930,0.13822609,95271.0,95270.0,0.1013084]
[1734899823134,0.077,95271.0,95270.0,0.1013084]
[1734899823529,0.13822609,95271.0,95270.0,0.1013084]
[1734899823729,0.08765438,95271.0,95270.0,0.1013084]
[1734899823890,0.07696,95271.0,95270.0,0.1013084]
[1734899824234,0.08765438,95271.0,95270.0,0.1013084]
[1734899825198,0.14888047,95271.0,95270.0,0.1013084]
[1734899825429,0.14888047,95271.0,95270.0,0.0553084]
[1734899827655,0.14888047,95271.0,95270.0,0.0483084]
[1734899828270,0.14888047,95271.0,95270.0,0.0553084]
[1734899828882,0.19718047,95271.0,95270.0,0.0553084]
[1734899829491,0.13595438,95271.0,95270.0,0.0553084]
[1734899830255,0.13595438,95271.0,95270.0,0.1036168]
[1734899830805,0.12526,95271.0,95270.0,0.1036168]
[1734899831235,0.13463338,95271.0,95270.0,0.1036168]
[1734899832364,0.13463338,95271.0,95270.0,0.1037878]
[1734899835397,0.19585947,95271.0,95270.0,0.000171]
[1734899837216,0.19691445,95271.0,95270.0,0.000171]
[1734899838116,0.13568836,95271.0,95270.0,0.000171]
[1734899838340,0.13463338,95271.0,95270.0,0.000171]
[1734899838544,0.19585947,95271.0,95270.0,0.000171]
[1734899840387,0.209929,95270.0,95251.0,0.023]
[1734899840585,0.209929,95270.0,95253.0,0.023]
[1734899840784,0.209934,95268.0,95257.0,0.209957]
[1734899840990,0.00929536,95269.0,95259.0,0.209953]
[1734899841314,0.00929127,95267.0,95260.0,0.1013084]
[1734899841447,0.00929332,95268.0,95260.0,0.1013084]
[1734899841849,0.209929,95270.0,95260.0,0.1013084]
[1734899842094,0.00929127,95267.0,95260.0,0.1013084]
[1734899842353,0.00928612,95266.0,95265.0,0.20994]
[1734899842502,0.00928612,95266.0,95265.0,0.3112484]
[1734899842704,0.06122609,95270.0,95265.0,0.3112484]
[1734899842928,0.06122609,95270.0,95266.0,0.1013084]
[1734899843078,0.06122609,95269.0,95266.0,0.1013084]
[1734899843996,0.06122609,95269.0,95266.0,0.1053084]
[1734899844421,0.06122609,95269.0,95266.0,0.1014794]
[1734899844621,0.06122609,95269.0,95266.0,0.1054794]
[1734899845427,0.06122609,95269.0,95266.0,0.004171]
[1734899845605,0.209936,95267.0,95266.0,0.004171]
[1734899846075,0.0076735,95267.0,95266.0,0.004171]
[1734899846454,0.06122609,95269.0,95266.0,0.000171]
[1734899846652,0.0076735,95267.0,95266.0,0.000171]
[1734899846973,0.36079057,95267.0,95266.0,0.005171]
[1734899847201,0.35973559,95267.0,95266.0,0.005171]
[1734899848102,0.35973559,95267.0,95266.0,0.000171]
[1734899848532,0.35973559,95267.0,95266.0,0.002171]
[1734899851217,0.40713559,95267.0,95266.0,0.002171]
[1734899851594,0.42275037,95267.0,95266.0,0.002171]
[1734899852429,0.42275037,95267.0,95266.0,0.000171]
[1734899852634,0.42375037,95267.0,95266.0,0.000171]
[1734899856932,0.42383587,95267.0,95266.0,0.000171]
[1734899857447,0.40822109,95267.0,95266.0,0.005131]
[1734899860834,0.40722109,95267.0,95266.0,0.005131]
[1734899861342,0.40822109,95267.0,95266.0,0.005131]
[1734899861466,0.40722109,95267.0,95266.0,0.005131]
[1734899861885,0.40722109,95267.0,95266.0,0.006131]
[1734899862974,0.06122609,95251.0,95250.0,0.09395108]
[1734899863197,0.0809,95250.0,95245.0,0.09395108]
[1734899863402,0.31859709,95251.0,95245.0,0.09395108]
[1734899863403,0.290882,95246.0,95245.0,0.09395108]
[1734899863887,0.29847025,95246.0,95245.0,0.09395108]
[1734899864561,0.29847025,95246.0,95245.0,0.09401347]
[1734899864788,0.29847025,95246.0,95245.0,6.239e-05]
[1734899865190,0.14971434,95246.0,95245.0,6.239e-05]
[1734899867431,0.14971434,95246.0,95245.0,0.00306239]
[1734899867818,0.14971434,95246.0,95245.0,6.239e-05]
[1734899868039,0.14971434,95246.0,95245.0,0.00106239]
[1734899868376,0.14971434,95246.0,95245.0,6.239e-05]
[1734899870367,0.15076932,95246.0,95245.0,0.00023339]
[1734899870516,0.20016932,95246.0,95245.0,0.00023339]
[1734899871733,0.45016932,95246.0,95245.0,0.00023339]
[1734899871933,0.44911434,95246.0,95245.0,0.00023339]
[1734899872748,0.19911434,95246.0,95245.0,0.00023339]
[1734899872953,0.20016932,95246.0,95245.0,0.00023339]
[1734899873322,0.19911434,95246.0,95245.0,0.00023339]
[1734899881033,0.19911434,95246.0,95245.0,0.00223339]
[1734899881235,0.19911434,95246.0,95245.0,0.00023339]
[1734899883194,0.06122609,95233.0,95232.0,0.04118447]
[1734899883778,0.06634645,95233.0,95232.0,0.04118447]
[1734899884251,0.06634645,95233.0,95228.0,0.18790216]
[1734899884252,0.06634645,95233.0,95228.0,0.14092662]
[1734899884455,0.210002,95237.0,95228.0,0.14092662]
[1734899884456,0.06122609,95239.0,95229.0,0.1013084]
[1734899884681,0.06122609,95236.0,95220.0,0.23242124]
[1734899884880,0.06122609,95239.0,95221.0,0.12535841]
[1734899885211,0.00511619,95235.0,95221.0,0.12535841]
[1734899885319,0.06122609,95236.0,95227.0,0.210022]
[1734899885537,0.00511619,95238.0,95231.0,0.210014]
[1734899885736,0.06122609,95241.0,95232.0,0.1013084]
[1734899886403,0.06122609,95241.0,95233.0,0.023]
[1734899887208,0.06122609,95241.0,95235.0,0.023]
[1734899887541,0.0473,95255.0,95237.0,0.023]
[1734899887542,0.06122609,95250.0,95237.0,0.023]
[1734899887803,0.06122609,95253.0,95241.0,0.023]
[1734899888029,0.06122609,95253.0,95243.0,0.023]
[1734899888207,0.06122609,95253.0,95233.0,0.002]
[1734899888208,0.06122609,95241.0,95221.0,0.13645619]
[1734899888402,0.06122609,95241.0,95210.0,0.12746672]
[1734899888403,0.10852609,95241.0,95224.0,0.210031]
[1734899888744,0.06122609,95224.0,95206.0,0.0001712]
[1734899888946,0.10852609,95221.0,95206.0,0.0001712]
[1734899889182,0.18822609,95221.0,95206.0,0.0001712]
[1734899889384,0.18928107,95221.0,95206.0,0.0001712]
[1734899891468,0.52399576,95221.0,95206.0,0.0001712]
[1734899891617,0.72294078,95221.0,95206.0,0.0001712]
[1734899891824,0.06122609,95196.0,95195.0,0.28182668]
[1734899892207,0.52368147,95196.0,95195.0,0.00054084]
[1734899892483,0.52262649,95196.0,95195.0,0.00054084]
[1734899893113,0.42131809,95196.0,95179.0,0.23515162]
[1734899893251,0.210104,95191.0,95179.0,0.18286346]
[1734899893456,0.00105498,95190.0,95179.0,0.18286346]
[1734899893665,0.00105498,95190.0,95170.0,0.21032]
[1734899893666,0.06122609,95183.0,95170.0,0.21032]
[1734899893871,0.06122609,95185.0,95170.0,0.21032]
[1734899894172,0.06122609,95187.0,95175.0,0.210139]
[1734899894545,0.06122609,95183.0,95175.0,0.210139]
[1734899894746,0.06122609,95183.0,95179.0,0.001]
[1734899895572,0.00105498,95190.0,95171.0,0.023]
[1734899895573,0.06122609,95187.0,95171.0,0.023]
[1734899895743,0.06122609,95187.0,95175.0,0.233139]
[1734899896085,0.06122609,95183.0,95175.0,0.233139]
[1734899896283,0.06122609,95183.0,95175.0,0.023]
[1734899897168,0.06122609,95183.0,95174.0,0.000171]
[1734899897376,0.06122609,95183.0,95179.0,0.004]
[1734899897776,0.06122609,95182.0,95175.0,0.210139]
[1734899897989,0.06122609,95182.0,95174.0,0.000171]
[1734899898312,0.06122609,95182.0,95169.0,0.21015]
[1734899898518,0.06122609,95178.0,95157.0,0.210178]
[1734899898714,0.15053978,95196.0,95164.0,0.1014796]
[1734899898715,0.210148,95171.0,95164.0,0.1014796]
[1734899899091,0.06122609,95173.0,95164.0,0.1014796]
[1734899899284,0.06122609,95177.0,95166.0,0.210159]
[1734899899517,0.06122609,95177.0,95167.0,0.1013084]
[1734899900296,0.210137,95176.0,95167.0,0.1013084]
[1734899900498,0.06122609,95177.0,95169.0,0.004]
[1734899900944,0.06122609,95177.0,95167.0,0.1013084]
[1734899901325,0.06122609,95177.0,95167.0,0.1043084]
[1734899901535,0.06122609,95177.0,95167.0,0.1013084]
[1734899901735,0.06122609,95177.0,95169.0,0.002]
[1734899902515,0.06122609,95177.0,95167.0,0.1013084]
[1734899903153,0.06122609,95177.0,95164.0,0.2103332]
[1734899903397,0.06122609,95177.0,95166.0,0.210159]
[1734899903711,0.06122609,95177.0,95166.0,0.1013084]
[1734899904133,0.06122609,95177.0,95167.0,0.003]
[1734899904341,0.06122609,95177.0,95166.0,0.1013084]
[1734899904684,0.210137,95176.0,95166.0,0.1043084]
[1734899904867,0.210137,95176.0,95166.0,0.1013084]
[1734899905068,0.06122609,95177.0,95166.0,0.3114664]
[1734899905275,0.06122609,95177.0,95167.0,0.003]
[1734899905519,0.06122609,95177.0,95169.0,0.210152]
[1734899906376,0.06122609,95177.0,95167.0,0.0001714]
[1734899907514,0.06122609,95177.0,95167.0,0.0031714]
[1734899907715,0.210137,95176.0,95167.0,0.0031714]
[1734899908126,0.210137,95176.0,95164.0,0.0001712]
[1734899908445,0.210137,95176.0,95164.0,0.1014796]
[1734899908446,0.06122609,95173.0,95164.0,0.1014796]
[1734899908603,0.06122609,95169.0,95164.0,0.0001712]
[1734899909149,0.13862609,95167.0,95164.0,0.0001712]
[1734899910237,0.210159,95166.0,95164.0,0.0001712]
[1734899910438,0.210159,95166.0,95164.0,0.00027893]
[1734899910842,0.06228107,95165.0,95164.0,0.00027893]
[1734899911430,0.06228107,95165.0,95164.0,0.00527893]
[1734899911630,0.06228107,95165.0,95164.0,0.00027893]
[1734899912050,0.06228107,95165.0,95164.0,0.00227893]
[1734899912252,0.06228107,95165.0,95164.0,0.00027893]
[1734899913037,0.11008107,95165.0,95164.0,0.00027893]
[1734899913242,0.21138947,95165.0,95164.0,0.00027893]
[1734899913436,0.28773449,95165.0,95164.0,0.00027893]
[1734899913554,0.21021,95143.0,95131.0,0.17264041]
[1734899913764,0.210187,95154.0,95131.0,0.17264041]
[1734899913765,0.06122609,95135.0,95131.0,0.00016222]
[1734899915611,0.06122609,95135.0,95131.0,0.00316222]
[1734899915812,0.210229,95134.0,95131.0,0.00316222]
[1734899916128,0.27146009,95132.0,95131.0,0.00316222]
[1734899916331,0.34886009,95132.0,95131.0,0.00316222]
[1734899916495,0.45016849,95132.0,95131.0,0.00316222]
[1734899916896,0.45016849,95132.0,95131.0,0.00016222]
[1734899917096,0.60016849,95132.0,95131.0,0.00016222]
[1734899917339,0.60016849,95132.0,95131.0,0.00316222]
[1734899917547,0.60016849,95132.0,95131.0,0.00016222]
[1734899917918,0.60016849,95132.0,95131.0,0.00233362]
[1734899918125,0.210271,95116.0,95099.0,0.16083682]
[1734899918320,0.210271,95116.0,95099.0,0.28100243]
[1734899918525,0.420542,95116.0,95099.0,0.28100243]
[1734899918921,0.210271,95116.0,95099.0,0.28100243]
[1734899919124,0.210281,95111.0,95099.0,0.28100243]
[1734899919330,0.06122609,95108.0,95099.0,0.00016201]
[1734899919514,0.0774,95106.0,95099.0,0.00016201]
[1734899919887,0.06122609,95100.0,95099.0,0.00016201]
[1734899920086,0.27153009,95100.0,95099.0,0.00016201]
[1734899920443,0.27153009,95100.0,95099.0,0.00316201]
[1734899920652,0.27153009,95100.0,95099.0,0.00016201]
[1734899920848,0.06122609,95100.0,95099.0,0.00016201]
[1734899921055,0.06122609,95104.0,95099.0,0.00316201]
[1734899921293,0.06122609,95100.0,95099.0,0.00016201]
[1734899921769,0.06122609,95100.0,95099.0,0.00116201]
[1734899921943,0.34893009,95100.0,95099.0,0.00016201]
[1734899922147,0.45023849,95100.0,95099.0,0.00016201]
[1734899922702,0.47103365,95100.0,95099.0,0.00016201]
[1734899923107,0.26072965,95100.0,95071.0,0.15787141]
[1734899923302,0.26072965,95100.0,95073.0,0.210364]
[1734899923303,0.06122609,95081.0,95073.0,0.210364]
[1734899923514,0.210334,95087.0,95073.0,0.210364]
[1734899923714,0.06122609,95086.0,95073.0,0.3116724]
[1734899923944,0.00105498,95097.0,95088.0,0.21033]
[1734899924151,0.00516171,95100.0,95089.0,0.00105154]
[1734899924371,0.00516171,95100.0,95086.0,0.210335]
[1734899924372,0.06122609,95099.0,95086.0,0.210335]
[1734899924573,0.06122609,95093.0,95075.0,0.023]
[1734899924775,0.210307,95099.0,95085.0,0.210336]
[1734899924776,0.06122609,95098.0,95085.0,0.210336]
[1734899924987,0.210307,95099.0,95085.0,0.210336]
[1734899925188,0.06122609,95098.0,95089.0,0.210327]
[1734899925390,0.06122609,95098.0,95087.0,0.210333]
[1734899926044,0.06122609,95098.0,95085.0,0.1013084]
[1734899926259,0.06122609,95098.0,95086.0,0.210335]
[1734899926447,0.06122609,95093.0,95082.0,0.210344]
[1734899927158,0.00121669,95100.0,95074.0,0.21036]
[1734899927159,0.06122609,95079.0,95074.0,0.21036]
[1734899927368,0.06122609,95079.0,95070.0,0.210369]
[1734899927588,0.06122609,95074.0,95068.0,0.0001714]
[1734899928004,0.06122609,95074.0,95069.0,0.210373]
[1734899928350,0.06122609,95079.0,95068.0,0.0001714]
[1734899928710,0.06122609,95079.0,95076.0,0.210357]
[1734899930292,0.06122609,95079.0,95068.0,0.0001714]
[1734899930493,0.06122609,95079.0,95076.0,0.003]
[1734899931021,0.06122609,95079.0,95077.0,0.210355]
[1734899931223,0.06122609,95088.0,95076.0,0.003]
[1734899931374,0.06122609,95088.0,95069.0,0.12746672]
[1734899931375,0.06122609,95088.0,95084.0,0.21034]
[1734899931752,0.06122609,95091.0,95089.0,0.210329]
[1734899931970,0.06122609,95090.0,95084.0,0.21034]
[1734899932519,0.06122609,95088.0,95084.0,0.21034]
[1734899932727,0.076,95092.0,95084.0,0.21034]
[1734899933467,0.076,95092.0,95089.0,0.210328]
[1734899933678,0.10692609,95096.0,95095.0,0.210315]
[1734899933886,0.06122609,95094.0,95093.0,0.21032]
[1734899934111,0.07616171,95100.0,95093.0,0.21032]
[1734899934112,0.1373878,95100.0,95099.0,0.210307]
[1734899934348,0.002,95092.0,95088.0,0.210331]
[1734899934582,0.1373878,95100.0,95088.0,0.3116394]
[1734899934836,0.1373878,95100.0,95097.0,0.210309]
[1734899935416,0.1373878,95100.0,95094.0,0.210317]
[1734899935626,0.1373878,95100.0,95092.0,0.210321]
[1734899936146,0.06122609,95086.0,95080.0,0.210348]
[1734899936934,0.06122609,95086.0,95070.0,0.12746672]
[1734899937106,0.07616171,95100.0,95076.0,0.210357]
[1734899937107,0.06122609,95080.0,95076.0,0.210357]
[1734899937453,0.06122609,95080.0,95071.0,0.210368]
[1734899937893,0.06122609,95080.0,95075.0,0.210359]
[1734899938088,0.06122609,95080.0,95075.0,0.157359]
[1734899938301,0.06122609,95080.0,95070.0,0.210371]
[1734899938517,0.076,95082.0,95075.0,0.210358]
[1734899938868,0.076,95082.0,95081.0,0.210346]
[1734899939452,0.210317,95095.0,95076.0,0.004]
[1734899939453,0.13722609,95090.0,95088.0,0.210331]
[1734899939633,0.06122609,95089.0,95080.0,0.12746672]
[1734899939836,0.06122609,95089.0,95082.0,0.210344]
[1734899940255,0.06122609,95089.0,95086.0,0.210335]
[1734899940457,0.076,95090.0,95086.0,0.210335]
[1734899940630,0.06122609,95088.0,95086.0,0.42067]
[1734899941259,0.06122609,95088.0,95082.0,0.213342]
[1734899941457,0.06122609,95083.0,95078.0,0.210352]
[1734899941656,0.06122609,95088.0,95078.0,0.210352]
[1734899941862,0.06122609,95079.0,95078.0,0.210352]
[1734899943143,0.06122609,95079.0,95070.0,0.12746672]
[1734899943343,0.06122609,95079.0,95077.0,0.210354]
[1734899944241,0.06222609,95079.0,95078.0,0.006]
[1734899944655,0.06122609,95079.0,95077.0,0.210354]
[1734899944854,0.06222609,95079.0,95077.0,0.216354]
[1734899945256,0.06122609,95079.0,95077.0,0.210354]
[1734899945461,0.076,95090.0,95086.0,0.210334]
[1734899945674,0.06122609,95087.0,95086.0,0.210334]
[1734899945873,0.076,95090.0,95086.0,0.420669]
[1734899946074,0.0001716,95093.0,95088.0,0.210331]
[1734899946277,0.0001716,95093.0,95090.0,0.210326]
[1734899946480,0.0001716,95093.0,95090.0,0.420652]
[1734899946680,0.0001716,95093.0,95092.0,0.210322]
[1734899946882,0.0001716,95093.0,95092.0,0.3346304]
[1734899948285,0.0011716,95093.0,95092.0,0.3406304]
[1734899948506,0.0011716,95093.0,95092.0,0.52325796]
[1734899948648,0.0011716,95093.0,95092.0,0.56203187]
[1734899949966,0.0001716,95093.0,95092.0,0.55603187]
[1734899950223,0.0001716,95093.0,95092.0,0.66003187]
[1734899950584,0.0759,95120.0,95096.0,0.03877391]
[1734899950789,0.0759,95120.0,95099.0,0.383307]
[1734899950967,0.11002609,95130.0,95099.0,0.55601687]
[1734899951331,0.0759,95129.0,95099.0,0.55601687]
[1734899951671,0.06122609,95125.0,95099.0,0.51724296]
[1734899951869,0.0488,95104.0,95099.0,0.03262756]
[1734899952102,0.0488,95104.0,95092.0,0.34499773]
[1734899952103,0.06122609,95099.0,95092.0,0.34499773]
[1734899952303,0.06122609,95098.0,95092.0,0.34499773]
[1734899952499,0.06122609,95098.0,95093.0,0.21032]
[1734899952701,0.06122609,95098.0,95085.0,0.01786862]
[1734899952702,0.06122609,95098.0,95095.0,0.210315]
[1734899953066,0.11002609,95104.0,95103.0,0.210298]
[1734899953320,0.11002609,95104.0,95095.0,0.210315]
[1734899953548,0.0488,95104.0,95103.0,0.210298]
[1734899953674,0.0488,95104.0,95100.0,0.210304]
[1734899954737,0.0488,95104.0,95100.0,0.420608]
[1734899954946,0.0488,95104.0,95099.0,0.210307]
[1734899955936,0.0488,95104.0,95096.0,0.023]
[1734899955937,0.0759,95103.0,95096.0,0.023]
[1734899956288,0.21028,95112.0,95083.0,0.09352349]
[1734899956289,0.06122609,95084.0,95083.0,0.09352349]
[1734899956487,0.11002609,95084.0,95083.0,0.09352349]
[1734899956692,0.18592609,95084.0,95083.0,0.09406353]
[1734899956862,0.18592609,95084.0,95073.0,0.23403976]
[1734899957109,0.21139698,95083.0,95080.0,0.14044694]
[1734899957298,0.06122609,95081.0,95080.0,0.14044694]
[1734899957481,0.06228107,95081.0,95080.0,0.14044694]
[1734899957684,0.06228107,95081.0,95080.0,0.00016171]
[1734899958065,0.23948947,95081.0,95080.0,0.00016171]
[1734899958427,0.210382,95066.0,95061.0,0.10764573]
[1734899958636,0.00105498,95065.0,95061.0,0.10764573]
[1734899959376,0.00105498,95065.0,95052.0,0.210409]
[1734899960426,0.00105498,95065.0,95050.0,0.210413]
[1734899960427,0.210384,95064.0,95050.0,0.210413]
[1734899960605,0.00105498,95063.0,95050.0,0.210413]
[1734899961173,0.210382,95066.0,95050.0,0.210413]
[1734899961174,0.06122609,95072.0,95066.0,0.210378]
[1734899961531,0.06122609,95072.0,95067.0,0.210377]
[1734899962130,0.00016217,95081.0,95069.0,0.233373]
[1734899962305,0.00016217,95081.0,95080.0,0.210349]
[1734899963110,0.00016217,95081.0,95078.0,0.210353]
[1734899963549,0.00016217,95081.0,95080.0,0.210349]
[1734899964324,0.00016217,95081.0,95078.0,0.210353]
[1734899964533,0.00016217,95081.0,95078.0,0.214353]
[1734899964749,0.00016217,95081.0,95078.0,0.210353]
[1734899965156,0.00116217,95081.0,95080.0,0.008]
[1734899965408,0.00016217,95081.0,95078.0,0.210353]
[1734899965785,0.00016217,95081.0,95078.0,0.214353]
[1734899966564,0.00016217,95081.0,95078.0,0.424706]
[1734899967308,0.00016217,95081.0,95078.0,0.420706]
[1734899967515,0.00116217,95081.0,95080.0,0.005]
[1734899967942,0.00016217,95081.0,95078.0,0.420706]
[1734899968252,0.00016217,95081.0,95078.0,0.216353]
[1734899968253,0.00116217,95081.0,95078.0,0.216353]
[1734899968455,0.00016217,95081.0,95078.0,0.210353]
[1734899968704,0.00016217,95081.0,95078.0,0.420706]
[1734899968829,0.00016217,95081.0,95080.0,0.006]
[1734899968830,0.00116217,95081.0,95080.0,0.006]
[1734899969040,0.00016217,95081.0,95078.0,0.420706]
[1734899970024,0.00016217,95081.0,95080.0,0.233349]
[1734899970433,0.00116217,95081.0,95080.0,0.233349]
[1734899970883,0.00016217,95081.0,95080.0,0.233349]
[1734899971085,0.00116217,95081.0,95080.0,0.233349]
[1734899971510,0.00016217,95081.0,95080.0,0.09411133]
[1734899971857,0.00116217,95081.0,95080.0,0.10311133]
[1734899972063,0.00116217,95081.0,95080.0,0.09411133]
[1734899972064,0.00016217,95081.0,95080.0,0.09411133]
[1734899972474,0.00116217,95081.0,95080.0,0.10311133]
[1734899972911,0.00116217,95081.0,95080.0,0.009]
[1734899973313,0.00116217,95081.0,95077.0,0.023]
[1734899973528,0.00116217,95081.0,95076.0,0.09411133]
[1734899973766,0.0791,95080.0,95076.0,0.09411133]
[1734899973970,0.06122609,95077.0,95076.0,0.09411133]
[1734899974168,0.27158109,95077.0,95076.0,0.09411133]
[1734899974581,0.06122609,95072.0,95071.0,0.09411133]
[1734899974785,0.14032609,95072.0,95071.0,0.09411133]
[1734899976165,0.06122609,95078.0,95077.0,0.210354]
[1734899976365,0.0495,95079.0,95073.0,0.210364]
[1734899976540,0.11072609,95079.0,95073.0,0.210364]
[1734899976793,0.0495,95079.0,95073.0,0.210364]
[1734899976999,0.00016217,95081.0,95078.0,0.420706]
[1734899978164,0.00016217,95081.0,95078.0,0.210353]
[1734899978472,0.00016217,95081.0,95078.0,0.420706]
[1734899978616,0.00033357,95081.0,95078.0,0.420706]
[1734899978826,0.00033357,95081.0,95080.0,0.233349]
[1734899979292,0.00033357,95081.0,95080.0,0.3346574]
[1734899980777,0.00033357,95081.0,95080.0,0.68417281]
[1734899980957,0.00033357,95081.0,95080.0,0.68217281]
[1734899981315,0.00033357,95081.0,95080.0,0.68417281]
[1734899981556,0.00133357,95081.0,95080.0,0.68417281]
[1734899983183,0.00133357,95081.0,95080.0,0.83417281]
[1734899983394,0.00133357,95081.0,95080.0,0.66259772]
[1734899984152,9.7e-07,95083.0,95082.0,0.21177391]
[1734899984380,0.00014313,95083.0,95082.0,0.31308231]
[1734899985462,0.00014313,95083.0,95082.0,0.31508231]
[1734899985666,0.00114313,95083.0,95082.0,0.31508231]
[1734899986071,0.00114313,95083.0,95082.0,0.66259772]
[1734899987865,0.0481,95114.0,95099.0,0.03877391]
[1734899988067,0.04864086,95114.0,95113.0,0.233276]
[1734899988242,0.04864086,95114.0,95113.0,0.1243084]
[1734899988443,0.04864086,95114.0,95113.0,0.3345844]
[1734899989058,0.00054086,95114.0,95113.0,0.3345844]
[1734899991334,0.00054086,95114.0,95113.0,0.3365844]
[1734899993577,0.00054086,95114.0,95113.0,0.35241879]
[1734899994397,0.00054086,95114.0,95113.0,0.22541879]
[1734899997657,0.00054086,95114.0,95113.0,0.49772719]
[1734899997861,0.00154086,95114.0,95113.0,0.50672719]
[1734899998297,0.00154086,95114.0,95113.0,0.29914279]
[1734899998501,0.00154086,95114.0,95113.0,0.3379167]
[1734899998674,0.00054086,95114.0,95113.0,0.3289167]
[1734899998895,0.048,95144.0,95122.0,0.21177391]
[1734899999206,0.04816225,95144.0,95131.0,0.12752481]
[1734899999424,0.04816225,95144.0,95143.0,0.210209]
[1734899999602,0.00016225,95144.0,95143.0,0.210209]
[1734900001516,0.00016225,95144.0,95143.0,0.215209]
[1734900002078,0.00016225,95144.0,95143.0,0.3165174]
[1734900002268,2.5e-07,95144.0,95143.0,0.52329131]
[1734900002694,8.57e-05,95166.0,95165.0,0.210161]
[1734900003337,8.57e-05,95166.0,95163.0,0.210165]
[1734900003502,8.57e-05,95166.0,95165.0,0.210161]
[1734900004471,0.0010857,95166.0,95165.0,0.219161]
[1734900007195,0.0010857,95166.0,95165.0,0.3204694]
[1734900008183,0.0010857,95166.0,95165.0,0.1934694]
[1734900008408,0.0010857,95166.0,95165.0,0.11135901]
[1734900008589,0.0010857,95166.0,95165.0,0.32152001]
[1734900008796,0.0010857,95166.0,95165.0,0.3204694]
[1734900009002,0.0010857,95166.0,95165.0,0.3434694]
[1734900010851,0.0010857,95166.0,95165.0,0.37199155]
[1734900011446,0.0010857,95166.0,95165.0,0.56076546]
[1734900011640,0.0010857,95166.0,95165.0,0.59145251]
[1734900011845,0.0010857,95166.0,95165.0,0.77345251]
[1734900012246,0.0001716,95179.0,95176.0,0.383137]
[1734900012455,0.00033373,95177.0,95176.0,0.5436546]
[1734900013243,0.00033373,95177.0,95176.0,0.3335176]
[1734900013866,0.00033373,95177.0,95176.0,0.30283055]
[1734900014043,0.00033373,95177.0,95176.0,0.5436546]
[1734900015010,0.00033373,95177.0,95176.0,0.51296755]
[1734900015220,0.00033373,95177.0,95176.0,0.52196755]